[Event "MČR družstev mladších žáků 2024"]
[Site "Harrachov, Czech Republic"]
[Date "2024.06.16"]
[Round "8.26"]
[White "Tykalova Barbora"]
[Black "Koupil Stepan"]
[Result "0-1"]
[TimeControl "25+10"]
[WhiteFideId "23750898"]
[BlackFideId "23742119"]
[WhiteElo "1284"]
[BlackElo "1423"]

1. e4 {[%clk 00:25:18]} {[%emt 00:00:03]} e5 {[%clk 00:25:18]} 2. Nf3 {[%clk
00:25:20]} {[%emt 00:00:09]} Nc6 {[%clk 00:25:27]} {[%emt 00:00:01]} 3. Bc4
{[%clk 00:25:24]} {[%emt 00:00:06]} Bc5 {[%clk 00:25:35]} {[%emt 00:00:01]} 4.
O-O {[%clk 00:25:28]} {[%emt 00:00:07]} Nf6 {[%clk 00:25:35]} {[%emt 00:00:10]}
5. d3 {[%clk 00:25:33]} {[%emt 00:00:04]} d6 {[%clk 00:25:29]} {[%emt
00:00:16]} 6. c3 {[%emt 00:00:43]} O-O {[%clk 00:25:12]} 7. b4 {[%clk
00:25:02]} {[%emt 00:00:34]} Bb6 {[%clk 00:25:16]} {[%emt 00:00:06]} 8. a4
{[%clk 00:24:53]} {[%emt 00:00:19]} a6 {[%clk 00:24:55]} {[%emt 00:00:31]} 9.
a5 {[%clk 00:24:43]} {[%emt 00:00:20]} Ba7 {[%clk 00:24:58]} {[%emt 00:00:06]}
10. Re1 {[%clk 00:24:05]} {[%emt 00:00:49]} Be6 {[%clk 00:24:28]} {[%emt
00:00:40]} 11. Qb3 {[%clk 00:23:30]} {[%emt 00:00:44]} Qd7 {[%clk 00:23:29]}
{[%emt 00:01:10]} 12. Be3 {[%clk 00:22:53]} {[%emt 00:00:47]} Rfe8 {[%clk
00:20:52]} {[%emt 00:02:47]} 13. Bxa7 {[%clk 00:22:18]} {[%emt 00:00:45]} Nxa7
{[%clk 00:20:21]} {[%emt 00:00:40]} 14. Nbd2 {[%clk 00:22:09]} {[%emt
00:00:20]} Nc6 {[%clk 00:19:05]} {[%emt 00:01:27]} 15. Ng5 {[%clk 00:21:42]}
{[%emt 00:00:37]} Bxc4 {[%emt 00:01:23]} 16. Qxc4 {[%clk 00:21:18]} {[%emt
00:00:23]} h6 {[%clk 00:17:47]} {[%emt 00:00:16]} 17. Ngf3 {[%clk 00:21:01]}
{[%emt 00:00:36]} d5 {[%clk 00:17:07]} {[%emt 00:00:41]} 18. exd5 {[%clk
00:21:05]} {[%emt 00:00:05]} Nxd5 {[%clk 00:17:24]} {[%emt 00:00:02]} 19. Nb3
{[%clk 00:20:47]} {[%emt 00:00:29]} b5 {[%clk 00:15:57]} {[%emt 00:01:37]} 20.
Qh4 {[%clk 00:19:55]} {[%emt 00:00:46]} Nxc3 {[%clk 00:14:43]} {[%emt
00:01:39]} 21. Nc5 {[%clk 00:19:52]} {[%emt 00:00:15]} Qd8 {[%clk 00:13:01]}
{[%emt 00:01:51]} 22. Qg3 {[%clk 00:19:30]} {[%emt 00:00:30]} Nd4 {[%clk
00:10:55]} {[%emt 00:02:18]} 23. Nxd4 {[%clk 00:18:51]} {[%emt 00:00:49]} Qxd4
{[%clk 00:10:56]} {[%emt 00:00:06]} 24. Kh1 {[%clk 00:16:17]} {[%emt 00:02:48]}
f6 {[%clk 00:09:07]} {[%emt 00:01:59]} 25. Ne4 {[%clk 00:15:38]} {[%emt
00:00:39]} Nxe4 {[%clk 00:08:35]} {[%emt 00:00:42]} 26. Rxe4 {[%clk 00:15:48]}
{[%emt 00:00:08]} Qxa1+ {[%clk 00:08:42]} {[%emt 00:00:04]} 0-1



[ePGN "0.1;DGT LiveChess/2.2.6"]

[Event "MČR družstev mladších žáků 2024"]
[Site "Harrachov, Czech Republic"]
[Date "2024.06.16"]
[Round "8.27"]
[White "Sara David"]
[Black "Koutecky Vaclav"]
[Result "1-0"]
[TimeControl "25+10"]
[WhiteFideId "23746599"]
[BlackFideId "23752602"]
[WhiteElo "1379"]
[BlackElo "1194"]

1. e4 {[%clk 00:25:18]} {[%emt 16:04:42]} e5 {[%clk 00:25:18]} 2. Nf3 {[%clk
00:25:27]} {[%emt 00:00:02]} Nc6 {[%clk 00:25:27]} 3. Bc4 {[%clk 00:25:36]} Nf6
{[%clk 00:25:36]} {[%emt 00:00:02]} 4. d3 {[%clk 00:25:45]} d5 {[%clk
00:25:45]} 5. exd5 {[%clk 00:25:52]} {[%emt 00:00:03]} Nxd5 {[%clk 00:25:53]}
{[%emt 00:00:02]} 6. h3 {[%clk 00:26:01]} {[%emt 00:00:01]} Bc5 {[%clk
00:25:35]} {[%emt 00:00:29]} 7. O-O {[%clk 00:26:02]} {[%emt 00:00:08]} h6
{[%clk 00:24:53]} {[%emt 00:00:51]} 8. Re1 {[%clk 00:26:02]} {[%emt 00:00:11]}
Qd6 {[%clk 00:22:41]} {[%emt 00:02:21]} 9. Bxd5 {[%clk 00:25:50]} {[%emt
00:00:23]} Qxd5 {[%clk 00:22:43]} {[%emt 00:00:08]} 10. Nc3 {[%clk 00:25:57]}
{[%emt 00:00:02]} Qd6 {[%clk 00:22:44]} {[%emt 00:00:09]} 11. Nb5 {[%clk
00:25:17]} {[%emt 00:00:51]} Qe7 {[%clk 00:22:34]} {[%emt 00:00:20]} 12. d4
{[%clk 00:25:24]} {[%emt 00:00:03]} Bd6 {[%clk 00:22:03]} {[%emt 00:00:40]} 13.
dxe5 {[%clk 00:25:11]} {[%emt 00:00:24]} Nxe5 {[%clk 00:21:08]} {[%emt
00:01:04]} 14. Nxe5 {[%clk 00:25:07]} {[%emt 00:00:14]} Bxe5 {[%clk 00:20:49]}
{[%emt 00:00:30]} 15. f4 {[%clk 00:24:54]} {[%emt 00:00:22]} Qc5+ {[%clk
00:20:38]} {[%emt 00:00:17]} 16. Kh1 {[%clk 00:24:41]} {[%emt 00:00:28]} f6
{[%clk 00:17:56]} {[%emt 00:02:52]} 17. Nc3 {[%clk 00:22:53]} {[%emt 00:01:58]}
O-O {[%clk 00:17:24]} {[%emt 00:00:42]} 18. fxe5 {[%clk 00:22:59]} {[%emt
00:00:04]} fxe5 {[%clk 00:17:27]} {[%emt 00:00:07]} 19. Be3 {[%clk 00:22:40]}
{[%emt 00:00:30]} Qe7 {[%clk 00:17:02]} {[%emt 00:00:28]} 20. Ne4 {[%clk
00:21:56]} {[%emt 00:01:00]} Qh4 {[%clk 00:15:52]} {[%emt 00:01:14]} 21. Bc5
{[%clk 00:20:58]} {[%emt 00:01:14]} Rf4 {[%clk 00:12:27]} {[%emt 00:03:32]} 22.
Kg1 {[%clk 00:19:41]} {[%emt 00:01:31]} Rxe4 {[%clk 00:11:50]} {[%emt
00:00:46]} 23. Qd5+ {[%clk 00:19:46]} {[%emt 00:00:05]} Kh8 {[%clk 00:10:48]}
{[%emt 00:01:08]} 24. Qxe4 {[%clk 00:19:45]} {[%emt 00:00:15]} Qg5 {[%clk
00:10:31]} {[%emt 00:00:24]} 25. Qxe5 {[%clk 00:19:52]} {[%emt 00:00:06]} 1-0



[ePGN "0.1;DGT LiveChess/2.2.6"]

[Event "MČR družstev mladších žáků 2024"]
[Site "Harrachov, Czech Republic"]
[Date "2024.06.16"]
[Round "8.28"]
[White "Koutecka Magdalena"]
[Black "Malek Daniel"]
[Result "0-1"]
[TimeControl "25+10"]
[WhiteFideId "23752599"]
[BlackFideId "23742720"]
[WhiteElo "1085"]
[BlackElo "1246"]

1. e4 {[%clk 00:25:18]} {[%emt 00:00:03]} e5 {[%clk 00:25:17]} {[%emt
00:00:01]} 2. Nf3 {[%clk 00:25:26]} {[%emt 00:00:02]} Nc6 {[%clk 00:25:25]}
{[%emt 00:00:02]} 3. d4 {[%clk 00:25:34]} {[%emt 00:00:02]} exd4 {[%clk
00:25:32]} {[%emt 00:00:03]} 4. Bc4 {[%clk 00:25:42]} {[%emt 00:00:02]} Bc5
{[%clk 00:25:37]} {[%emt 00:00:05]} 5. c3 {[%clk 00:25:49]} {[%emt 00:00:03]}
d6 {[%clk 00:25:28]} {[%emt 00:00:20]} 6. cxd4 {[%clk 00:24:39]} {[%emt
00:01:19]} Bb6 {[%clk 00:25:34]} {[%emt 00:00:04]} 7. Nc3 {[%clk 00:23:33]}
{[%emt 00:01:16]} Nf6 {[%clk 00:25:34]} {[%emt 00:00:10]} 8. O-O {[%clk
00:23:29]} {[%emt 00:00:14]} Bg4 {[%clk 00:25:10]} {[%emt 00:00:34]} 9. Bg5
{[%clk 00:22:17]} {[%emt 00:01:22]} Nxd4 {[%clk 00:24:13]} {[%emt 00:01:07]} 10.
Be2 {[%clk 00:19:08]} {[%emt 00:03:18]} Bxf3 {[%clk 00:23:39]} {[%emt
00:00:44]} 11. Bxf3 {[%clk 00:19:03]} {[%emt 00:00:16]} h6 {[%clk 00:23:19]}
{[%emt 00:00:30]} 12. Bh4 {[%clk 00:18:17]} {[%emt 00:00:53]} g5 {[%clk
00:23:02]} {[%emt 00:00:30]} 13. Bg3 {[%clk 00:18:23]} {[%emt 00:00:05]} h5
{[%clk 00:22:54]} {[%emt 00:00:18]} 14. h3 {[%clk 00:18:00]} {[%emt 00:00:33]}
Qd7 {[%clk 00:22:26]} {[%emt 00:00:36]} 15. Be2 {[%clk 00:17:23]} {[%emt
00:00:49]} O-O-O {[%clk 00:20:59]} {[%emt 00:01:36]} 16. a4 {[%clk 00:15:18]}
{[%emt 00:02:15]} a6 {[%clk 00:19:48]} {[%emt 00:01:21]} 17. Rc1 {[%clk
00:13:37]} {[%emt 00:01:51]} Rdg8 {[%clk 00:18:44]} {[%emt 00:01:14]} 18. Qd3
{[%clk 00:10:34]} {[%emt 00:03:12]} h4 {[%clk 00:18:11]} {[%emt 00:00:45]} 19.
Bh2 {[%clk 00:10:37]} {[%emt 00:00:06]} g4 {[%clk 00:18:13]} {[%emt 00:00:08]}
20. Kh1 {[%clk 00:10:05]} {[%emt 00:00:43]} gxh3 {[%clk 00:15:38]} {[%emt
00:02:44]} 21. Qxh3 {[%clk 00:09:42]} {[%emt 00:00:32]} Qxh3 {[%clk 00:15:22]}
{[%emt 00:00:26]} 22. gxh3 {[%clk 00:09:49]} {[%emt 00:00:04]} Ba5 {[%clk
00:15:15]} {[%emt 00:00:14]} 23. Bd3 {[%clk 00:08:42]} {[%emt 00:01:20]} Rg7
{[%clk 00:12:50]} {[%emt 00:02:36]} 24. Ne2 {[%clk 00:07:15]} {[%emt 00:01:37]}
Nxe2 {[%clk 00:12:05]} {[%emt 00:00:54]} 25. Bxe2 {[%clk 00:07:21]} {[%emt
00:00:03]} Nxe4 {[%clk 00:11:44]} {[%emt 00:00:31]} 26. Bf3 {[%clk 00:05:47]}
{[%emt 00:01:46]} Nd2 {[%clk 00:11:06]} {[%emt 00:00:47]} 27. Bg4+ {[%clk
00:05:33]} {[%emt 00:00:24]} Kb8 {[%clk 00:10:24]} {[%emt 00:00:52]} 28. Rg1
{[%clk 00:04:57]} {[%emt 00:00:46]} Ne4 {[%clk 00:09:27]} {[%emt 00:01:04]} 29.
Rg2 {[%clk 00:04:25]} {[%emt 00:00:45]} Bb6 {[%clk 00:09:10]} {[%emt 00:00:27]}
30. Rf1 {[%clk 00:03:08]} {[%emt 00:01:27]} Rhg8 {[%clk 00:08:33]} {[%emt
00:00:46]} 31. Bf4 {[%clk 00:01:42]} {[%emt 00:01:37]} f5 {[%clk 00:07:35]}
{[%emt 00:01:09]} 32. Bf3 {[%clk 00:01:30]} {[%emt 00:00:18]} Rxg2 {[%clk
00:07:20]} {[%emt 00:00:28]} 33. Bxg2 {[%clk 00:01:21]} {[%emt 00:00:20]} Nxf2+
{[%clk 00:07:23]} {[%emt 00:00:06]} 34. Kh2 {[%clk 00:01:02]} {[%emt 00:00:28]}
Nd3 {[%clk 00:06:09]} {[%emt 00:01:26]} 35. Bd2 {[%clk 00:00:55]} {[%emt
00:00:15]} Bf2 {[%clk 00:04:57]} {[%emt 00:01:22]} 36. Bc3 {[%clk 00:00:16]}
{[%emt 00:00:50]} Bg3+ {[%clk 00:04:01]} {[%emt 00:01:06]} 37. Kh1 {[%clk
00:00:20]} {[%emt 00:00:06]} Nf4 {[%clk 00:03:20]} {[%emt 00:00:50]} 38. Bd5
{[%clk 00:00:25]} {[%emt 00:00:03]} Nxd5 {[%clk 00:03:23]} {[%emt 00:00:10]} 39.
Rxf5 {[%clk 00:00:31]} {[%emt 00:00:03]} Nxc3 {[%clk 00:03:31]} {[%emt
00:00:03]} 40. bxc3 {[%clk 00:00:40]} {[%emt 00:00:01]} Be5 {[%clk 00:03:29]}
{[%emt 00:00:11]} 41. Rh5 {[%clk 00:00:35]} {[%emt 00:00:16]} Bxc3 {[%clk
00:03:18]} {[%emt 00:00:21]} 42. Rxh4 {[%clk 00:00:43]} {[%emt 00:00:02]} Rh8
{[%clk 00:03:27]} {[%emt 00:00:02]} 43. Rxh8+ {[%clk 00:00:27]} {[%emt
00:00:26]} Bxh8 {[%clk 00:03:35]} {[%emt 00:00:02]} 44. h4 {[%clk 00:00:36]}
{[%emt 00:00:01]} b5 {[%clk 00:03:39]} {[%emt 00:00:05]} 45. axb5 {[%clk
00:00:35]} {[%emt 00:00:12]} a5 {[%clk 00:03:45]} {[%emt 00:00:04]} 46. h5
{[%clk 00:00:40]} {[%emt 00:00:05]} Kb7 {[%clk 00:03:53]} {[%emt 00:00:02]} 47.
Kg2 {[%clk 00:00:46]} {[%emt 00:00:03]} Kb6 {[%clk 00:04:01]} {[%emt 00:00:02]}
48. Kg3 {[%clk 00:00:55]} {[%emt 00:00:01]} Kxb5 {[%clk 00:04:09]} {[%emt
00:00:02]} 49. Kg4 {[%clk 00:01:04]} {[%emt 00:00:02]} a4 {[%clk 00:04:17]}
{[%emt 00:00:01]} 50. h6 {[%clk 00:01:02]} {[%emt 00:00:12]} a3 {[%clk
00:04:25]} {[%emt 00:00:02]} 51. Kg5 {[%clk 00:01:10]} {[%emt 00:00:01]} a2
{[%clk 00:04:33]} {[%emt 00:00:03]} 0-1



[ePGN "0.1;DGT LiveChess/2.2.6"]

[Event "MČR družstev mladších žáků 2024"]
[Site "Harrachov, Czech Republic"]
[Date "2024.06.16"]
[Round "8.29"]
[White "Junova Alexandra"]
[Black "Strazhnyk Yevhen"]
[Result "1-0"]
[TimeControl "25+10"]
[WhiteFideId "23754990"]
[BlackFideId "23771305"]
[WhiteElo "1105"]
[BlackElo "1150"]

1. e4 {[%clk 00:25:17]} {[%emt 00:00:03]} e5 {[%clk 00:25:18]} {[%emt
00:00:01]} 2. Nf3 {[%clk 00:25:23]} {[%emt 00:00:03]} Nc6 {[%clk 00:25:26]}
{[%emt 00:00:02]} 3. Bb5 {[%clk 00:25:29]} {[%emt 00:00:04]} a6 {[%clk
00:25:35]} {[%emt 00:00:02]} 4. Bxc6 {[%clk 00:25:35]} {[%emt 00:00:04]} dxc6
{[%clk 00:25:43]} {[%emt 00:00:02]} 5. Nc3 {[%clk 00:25:41]} {[%emt 00:00:04]}
Bd6 {[%clk 00:25:40]} {[%emt 00:00:13]} 6. O-O {[%clk 00:25:47]} {[%emt
00:00:04]} Nf6 {[%clk 00:25:45]} {[%emt 00:00:05]} 7. h3 {[%clk 00:25:50]}
{[%emt 00:00:07]} O-O {[%clk 00:25:28]} {[%emt 00:00:27]} 8. Re1 {[%clk
00:25:44]} {[%emt 00:00:15]} Re8 {[%clk 00:24:57]} {[%emt 00:00:41]} 9. d3
{[%clk 00:25:49]} {[%emt 00:00:06]} c5 {[%clk 00:24:34]} {[%emt 00:00:32]} 10.
Bg5 {[%clk 00:25:48]} {[%emt 00:00:11]} c6 {[%clk 00:24:18]} {[%emt 00:00:27]}
11. a3 {[%clk 00:25:12]} {[%emt 00:00:46]} b6 {[%clk 00:23:40]} {[%emt
00:00:48]} 12. Qd2 {[%clk 00:23:12]} {[%emt 00:02:09]} Qe7 {[%clk 00:23:13]}
{[%emt 00:00:35]} 13. Na2 {[%clk 00:22:33]} {[%emt 00:00:52]} Qe6 {[%clk
00:22:18]} {[%emt 00:01:05]} 14. c3 {[%clk 00:22:18]} {[%emt 00:00:25]} Nh5
{[%clk 00:21:34]} {[%emt 00:00:51]} 15. d4 {[%clk 00:20:33]} {[%emt 00:01:58]}
cxd4 {[%clk 00:20:40]} {[%emt 00:01:03]} 16. cxd4 {[%clk 00:20:41]} {[%emt
00:00:02]} h6 {[%clk 00:20:45]} {[%emt 00:00:06]} 17. Bh4 {[%clk 00:20:31]}
{[%emt 00:00:19]} Qg6 {[%clk 00:19:04]} {[%emt 00:01:52]} 18. dxe5 {[%clk
00:20:04]} {[%emt 00:00:37]} Bxh3 {[%clk 00:18:07]} {[%emt 00:01:06]} 19. g3
{[%clk 00:19:59]} {[%emt 00:00:16]} Bxe5 {[%clk 00:17:07]} {[%emt 00:01:10]} 20.
Nxe5 {[%clk 00:19:56]} {[%emt 00:00:13]} Rxe5 {[%clk 00:17:15]} {[%emt
00:00:02]} 21. Qd4 {[%clk 00:19:12]} {[%emt 00:00:53]} Qg4 {[%clk 00:14:07]}
{[%emt 00:03:19]} 22. Re3 {[%clk 00:18:23]} {[%emt 00:00:58]} Rae8 {[%clk
00:12:51]} {[%emt 00:01:27]} 23. f3 {[%clk 00:17:37]} {[%emt 00:00:56]} Qe6
{[%clk 00:11:37]} {[%emt 00:01:01]} 24. Bd8 {[%clk 00:16:30]} {[%emt 00:01:39]}
c5 {[%clk 00:10:58]} {[%emt 00:00:50]} 25. Qd3 {[%clk 00:16:19]} {[%emt
00:00:20]} b5 {[%clk 00:10:05]} {[%emt 00:01:04]} 26. Nc3 {[%clk 00:14:35]}
{[%emt 00:01:54]} c4 {[%clk 00:09:45]} {[%emt 00:00:30]} 27. Qd4 {[%clk
00:14:26]} {[%emt 00:00:19]} Qg6 {[%clk 00:08:25]} {[%emt 00:01:28]} 28. f4
{[%clk 00:14:13]} {[%emt 00:00:24]} Nxf4 {[%clk 00:08:15]} {[%emt 00:00:20]} 29.
Bc7 {[%clk 00:14:04]} {[%emt 00:00:19]} Ne6 {[%clk 00:06:25]} {[%emt 00:02:00]}
30. Qxe5 {[%clk 00:13:56]} {[%emt 00:00:19]} Nxc7 {[%clk 00:05:53]} {[%emt
00:00:42]} 31. Qxc7 {[%clk 00:13:59]} {[%emt 00:00:06]} Qg5 {[%clk 00:05:36]}
{[%emt 00:00:27]} 32. Rf3 {[%clk 00:13:30]} {[%emt 00:00:39]} Qd2 {[%clk
00:05:19]} {[%emt 00:00:27]} 33. Qxf7+ {[%clk 00:12:47]} {[%emt 00:00:53]} Kh7
{[%clk 00:05:20]} {[%emt 00:00:08]} 34. Rf2 {[%clk 00:12:53]} {[%emt 00:00:06]}
Qd8 {[%clk 00:05:23]} {[%emt 00:00:06]} 35. Rd1 {[%clk 00:12:35]} {[%emt
00:00:28]} Qb8 {[%clk 00:05:22]} {[%emt 00:00:09]} 36. Kh2 {[%clk 00:12:23]}
{[%emt 00:00:23]} Bg4 {[%clk 00:05:20]} {[%emt 00:00:13]} 37. Rdd2 {[%clk
00:11:16]} {[%emt 00:01:18]} Be6 {[%clk 00:04:44]} {[%emt 00:00:46]} 38. Qh5
{[%clk 00:10:09]} {[%emt 00:01:16]} Qc8 {[%clk 00:04:01]} {[%emt 00:00:53]} 39.
Rf4 {[%clk 00:09:40]} {[%emt 00:00:38]} Rf8 {[%clk 00:02:58]} {[%emt 00:01:15]}
40. Qe5 {[%clk 00:08:20]} {[%emt 00:01:29]} Rxf4 {[%clk 00:02:05]} {[%emt
00:01:03]} 41. gxf4 {[%clk 00:07:36]} {[%emt 00:00:55]} Bf7 {[%clk 00:01:46]}
{[%emt 00:00:25]} 42. Rg2 {[%clk 00:07:32]} {[%emt 00:00:17]} g6 {[%clk
00:01:52]} {[%emt 00:00:05]} 43. f5 {[%clk 00:07:25]} {[%emt 00:00:16]} g5
{[%clk 00:01:28]} {[%emt 00:00:35]} 44. Qe7 {[%clk 00:06:46]} {[%emt 00:00:48]}
Qe8 {[%clk 00:01:25]} {[%emt 00:00:12]} 45. Qxe8 {[%clk 00:06:31]} {[%emt
00:00:26]} Bxe8 {[%clk 00:01:34]} 46. Kg3 {[%clk 00:06:40]} {[%emt 00:00:03]}
Kg7 {[%clk 00:01:41]} {[%emt 00:00:03]} 47. Nd5 {[%clk 00:06:39]} {[%emt
00:00:11]} Bc6 {[%clk 00:00:54]} {[%emt 00:00:57]} 48. Re2 {[%clk 00:06:41]}
{[%emt 00:00:08]} Kf7 {[%clk 00:00:51]} {[%emt 00:00:12]} 49. Kg4 {[%clk
00:06:31]} {[%emt 00:00:21]} a5 {[%clk 00:00:23]} {[%emt 00:00:38]} 50. Kh5
{[%clk 00:06:17]} {[%emt 00:00:24]} Kg7 {[%emt 00:00:06]} 51. f6+ {[%clk
00:06:18]} {[%emt 00:00:06]} 1-0



[ePGN "0.1;DGT LiveChess/2.2.6"]

[Event "MČR družstev mladších žáků 2024"]
[Site "Harrachov, Czech Republic"]
[Date "2024.06.16"]
[Round "8.3"]
[White "Najdkova Laura"]
[Black "Kolar Edvard"]
[Result "0-1"]
[TimeControl "25+10"]
[WhiteFideId "23751290"]
[BlackFideId "23746238"]
[WhiteElo "1337"]
[BlackElo "1553"]

1. e4 {[%clk 00:25:19]} {[%emt 16:15:34]} c5 {[%clk 00:25:19]} {[%emt
00:00:02]} 2. Nf3 {[%clk 00:25:27]} {[%emt 00:00:01]} Nc6 {[%clk 00:25:19]}
{[%emt 00:00:10]} 3. d4 {[%clk 00:25:32]} {[%emt 00:00:06]} cxd4 {[%clk
00:25:26]} {[%emt 00:00:03]} 4. Nxd4 {[%clk 00:25:39]} {[%emt 00:00:02]} g6
{[%clk 00:25:35]} {[%emt 00:00:01]} 5. Nc3 {[%clk 00:25:47]} {[%emt 00:00:02]}
Bg7 {[%clk 00:25:39]} {[%emt 00:00:06]} 6. Be3 {[%clk 00:25:56]} {[%emt
00:00:02]} Nf6 {[%clk 00:25:47]} {[%emt 00:00:02]} 7. Be2 {[%clk 00:26:01]}
{[%emt 00:00:05]} d5 {[%clk 00:25:55]} {[%emt 00:00:01]} 8. exd5 {[%clk
00:24:24]} {[%emt 00:01:48]} Nxd5 {[%clk 00:26:03]} {[%emt 00:00:02]} 9. Nxd5
{[%clk 00:24:00]} {[%emt 00:00:33]} Qxd5 {[%clk 00:26:11]} {[%emt 00:00:02]} 10.
Bf3 {[%clk 00:23:29]} {[%emt 00:00:41]} Qa5+ {[%clk 00:26:18]} {[%emt
00:00:04]} 11. c3 {[%clk 00:23:06]} {[%emt 00:00:33]} O-O {[%clk 00:25:43]}
{[%emt 00:00:44]} 12. O-O {[%clk 00:22:05]} {[%emt 00:01:10]} Nxd4 {[%clk
00:24:31]} {[%emt 00:01:22]} 13. Bxd4 {[%clk 00:22:08]} {[%emt 00:00:08]} Rd8
{[%clk 00:23:24]} {[%emt 00:01:17]} 14. Qe2 {[%clk 00:18:47]} {[%emt 00:03:30]}
e5 {[%clk 00:22:23]} {[%emt 00:01:12]} 15. Be3 {[%clk 00:18:17]} {[%emt
00:00:40]} Qc7 {[%clk 00:21:29]} {[%emt 00:01:04]} 16. Rad1 {[%clk 00:17:31]}
{[%emt 00:00:56]} Be6 {[%clk 00:21:05]} {[%emt 00:00:34]} 17. Qc2 {[%clk
00:13:47]} {[%emt 00:03:53]} f5 {[%clk 00:20:10]} {[%emt 00:01:06]} 18. Bg5
{[%clk 00:08:23]} {[%emt 00:05:34]} Rxd1 {[%clk 00:19:22]} {[%emt 00:00:57]} 19.
Rxd1 {[%clk 00:08:29]} {[%emt 00:00:04]} f4 {[%clk 00:19:07]} {[%emt 00:00:25]}
20. Qd3 {[%clk 00:05:52]} {[%emt 00:02:47]} Rf8 {[%clk 00:17:32]} {[%emt
00:01:45]} 21. Bd8 {[%clk 00:03:36]} {[%emt 00:02:27]} Qf7 {[%clk 00:17:27]}
{[%emt 00:00:15]} 22. Ba5 {[%clk 00:02:56]} {[%emt 00:00:50]} Bxa2 {[%clk
00:16:31]} {[%emt 00:01:06]} 23. Qe4 {[%clk 00:02:10]} {[%emt 00:00:56]} b6
{[%clk 00:15:51]} {[%emt 00:00:50]} 24. Bb4 {[%clk 00:02:15]} {[%emt 00:00:05]}
Re8 {[%clk 00:15:51]} {[%emt 00:00:09]} 25. Qd3 {[%clk 00:00:58]} {[%emt
00:01:27]} Bc4 {[%clk 00:14:43]} {[%emt 00:01:18]} 26. Qd6 {[%clk 00:00:21]}
{[%emt 00:00:47]} e4 {[%clk 00:14:35]} {[%emt 00:00:19]} 27. Bg4 {[%clk
00:00:18]} {[%emt 00:00:13]} e3 {[%clk 00:14:22]} {[%emt 00:00:22]} 28. fxe3
{[%clk 00:00:22]} {[%emt 00:00:06]} fxe3 {[%clk 00:14:28]} {[%emt 00:00:04]} 29.
Re1 {[%clk 00:00:26]} {[%emt 00:00:06]} Qf2+ {[%clk 00:14:34]} {[%emt
00:00:03]} 30. Kh1 {[%clk 00:00:31]} {[%emt 00:00:05]} Qxe1# {[%clk 00:14:37]}
{[%emt 00:00:07]} 0-1



[ePGN "0.1;DGT LiveChess/2.2.6"]

[Event "MČR družstev mladších žáků 2024"]
[Site "Harrachov, Czech Republic"]
[Date "2024.06.16"]
[Round "8.4"]
[White "Gernert Tomas"]
[Black "Hamernikova Iris"]
[Result "1-0"]
[TimeControl "25+10"]
[WhiteFideId "23750219"]
[BlackFideId "23745738"]
[WhiteElo "1409"]
[BlackElo "1216"]

1. d4 {[%clk 00:25:17]} {[%emt 00:00:01]} d5 {[%clk 00:25:19]} {[%emt
00:00:02]} 2. Nf3 {[%clk 00:25:26]} Nf6 {[%clk 00:25:27]} {[%emt 00:00:02]} 3.
Bf4 {[%clk 00:25:34]} {[%emt 00:00:02]} e6 {[%clk 00:25:32]} {[%emt 00:00:05]}
4. e3 {[%clk 00:25:42]} {[%emt 00:00:01]} Nbd7 {[%clk 00:25:41]} {[%emt
00:00:02]} 5. Bd3 {[%clk 00:25:50]} {[%emt 00:00:02]} Be7 {[%clk 00:25:42]}
{[%emt 00:00:09]} 6. Nbd2 {[%clk 00:25:58]} {[%emt 00:00:03]} O-O {[%clk
00:25:49]} {[%emt 00:00:03]} 7. Ne5 {[%clk 00:26:04]} {[%emt 00:00:04]} b6
{[%clk 00:25:07]} {[%emt 00:00:52]} 8. Qf3 {[%clk 00:22:58]} {[%emt 00:03:16]}
h6 {[%clk 00:21:28]} {[%emt 00:03:50]} 9. g4 {[%clk 00:18:07]} {[%emt
00:05:01]} g5 {[%clk 00:15:39]} {[%emt 00:05:59]} 10. Bg3 {[%clk 00:11:56]}
{[%emt 00:06:21]} Kg7 {[%clk 00:15:27]} {[%emt 00:00:22]} 11. h4 {[%clk
00:10:51]} {[%emt 00:01:15]} Rh8 {[%clk 00:14:20]} {[%emt 00:01:16]} 12. O-O-O
{[%clk 00:09:00]} {[%emt 00:02:01]} c5 {[%clk 00:12:38]} {[%emt 00:01:53]} 13.
c3 {[%clk 00:08:17]} {[%emt 00:00:52]} c4 {[%clk 00:12:36]} {[%emt 00:00:13]}
14. Bxc4 {[%clk 00:07:25]} {[%emt 00:01:02]} dxc4 {[%clk 00:10:52]} {[%emt
00:01:54]} 15. Qxa8 {[%clk 00:07:23]} {[%emt 00:00:12]} a5 {[%clk 00:08:30]}
{[%emt 00:02:32]} 16. hxg5 {[%clk 00:06:23]} {[%emt 00:01:10]} Nd5 {[%clk
00:06:42]} {[%emt 00:01:58]} 17. gxh6+ {[%clk 00:04:43]} {[%emt 00:01:51]} Rxh6
{[%clk 00:06:51]} {[%emt 00:00:01]} 18. Rxh6 {[%clk 00:04:50]} {[%emt
00:00:03]} Nxe5 {[%clk 00:06:22]} {[%emt 00:00:38]} 19. Rdh1 {[%clk 00:04:09]}
{[%emt 00:00:52]} Nd3+ {[%clk 00:06:14]} {[%emt 00:00:18]} 20. Kb1 {[%clk
00:04:18]} {[%emt 00:00:01]} Nf6 {[%clk 00:06:01]} {[%emt 00:00:24]} 21. g5
{[%clk 00:03:29]} {[%emt 00:00:59]} Ng8 {[%clk 00:05:54]} {[%emt 00:00:17]} 22.
Rh7+ {[%clk 00:03:05]} {[%emt 00:00:33]} Kf8 {[%clk 00:05:38]} {[%emt
00:00:25]} 23. Qf3 {[%clk 00:03:04]} {[%emt 00:00:12]} Qe8 {[%clk 00:04:39]}
{[%emt 00:01:09]} 24. g6 {[%clk 00:02:50]} {[%emt 00:00:24]} Bf6 {[%clk
00:04:02]} {[%emt 00:00:47]} 25. Rxf7+ {[%clk 00:02:38]} {[%emt 00:00:21]} Qxf7
{[%clk 00:04:04]} {[%emt 00:00:09]} 26. gxf7 {[%clk 00:02:46]} {[%emt
00:00:02]} Kxf7 {[%clk 00:04:04]} {[%emt 00:00:09]} 27. Ne4 {[%clk 00:02:31]}
{[%emt 00:00:25]} Kg7 {[%clk 00:03:20]} {[%emt 00:00:54]} 28. Nxf6 {[%clk
00:02:28]} {[%emt 00:00:12]} Nxf6 {[%clk 00:03:29]} {[%emt 00:00:01]} 29. Be5
{[%clk 00:02:33]} {[%emt 00:00:06]} Nxe5 {[%clk 00:01:37]} {[%emt 00:02:01]} 30.
dxe5 {[%clk 00:02:40]} {[%emt 00:00:03]} Nd5 {[%clk 00:01:43]} {[%emt
00:00:04]} 31. Rg1+ {[%clk 00:02:46]} {[%emt 00:00:04]} 1-0



[ePGN "0.1;DGT LiveChess/2.2.6"]